fUSD/lending_fUSD_20260404
["ID","MTS","AMOUNT","RATE_DAILY","PERIOD"]
[419675375,1775278262475,-500.0,0.00035726,9]
[419675376,1775278262484,-500.0,0.00035726,9]
[419675377,1775278262493,-500.0,0.00035726,9]
[419675378,1775278262502,-532.42200372,0.00035726,9]
[419675379,1775278262511,-500.0,0.00035726,9]
[419675380,1775278262520,-521.17,0.00035726,9]
[419675381,1775278262529,-500.0,0.00035726,9]
[419675382,1775278262538,-500.0,0.00035726,9]
[419675383,1775278262548,-500.0,0.00035726,9]
[419675384,1775278262556,-192.57158403,0.00035726,9]
[419675385,1775278262565,-500.0,0.00035726,9]
[419675386,1775278262574,-500.0,0.00035726,9]
[419675387,1775278262584,-875.78,0.00035726,9]
[419675388,1775278262593,-500.0,0.00035726,9]
[419675389,1775278262602,-500.0,0.00035726,9]
[419675390,1775278262611,-500.0,0.00035726,9]
[419675391,1775278262620,-500.0,0.00035726,9]
[419675392,1775278262629,-500.0,0.00035726,9]
[419675393,1775278262639,-500.0,0.00035726,9]
[419675394,1775278262648,-500.0,0.00035726,9]
[419675395,1775278262658,-500.0,0.00035726,9]
[419675396,1775278262666,-500.0,0.00035726,9]
[419675397,1775278262675,-500.0,0.00035726,9]
[419675398,1775278262684,-500.0,0.00035726,9]
[419675399,1775278262693,-844.81,0.00035726,9]
[419675400,1775278262702,-500.0,0.00035726,9]
[419675401,1775278262710,-500.0,0.00035726,9]
[419675402,1775278262721,-500.0,0.00035726,9]
[419675403,1775278262730,-500.0,0.00035726,9]
[419675404,1775278262739,-500.0,0.00035726,9]
[419675405,1775278262748,-500.0,0.00035726,9]
[419675406,1775278262758,-500.0,0.00035726,9]
[419675407,1775278262767,-814.86,0.00035726,9]
[419675408,1775278262775,-2230.54,0.00035726,9]
[419675409,1775278262784,-500.0,0.00035726,9]
[419675410,1775278262793,-500.0,0.00035726,9]
[419675411,1775278262801,-151.0,0.00035726,7]
[419675412,1775278262810,-500.0,0.00035726,9]
[419675413,1775278262819,-500.0,0.00035726,9]
[419675414,1775278262828,-1020.17,0.00035726,9]
[419675415,1775278262837,-151.0,0.00035726,7]
[419675416,1775278262846,-500.0,0.00035726,9]
[419675417,1775278262855,-500.0,0.00035726,9]
[419675418,1775278262863,-500.0,0.00035726,9]
[419675419,1775278262872,-572.01246642,0.00035726,9]
[419675420,1775278262881,-500.0,0.00035726,9]
[419675421,1775278262890,-500.0,0.00035726,9]
[419675422,1775278262899,-500.0,0.00035726,9]
[419675423,1775278262907,-500.0,0.00035726,9]
[419675424,1775278262916,-500.0,0.00035726,9]
[419675425,1775278262926,-500.0,0.00035726,9]
[419675426,1775278262935,-1101.01,0.00035726,9]
[419675427,1775278262944,-500.0,0.00035726,120]
[419675428,1775278262953,-500.0,0.00035726,9]
[419675429,1775278262961,-1096.52,0.00035726,9]
[419675430,1775278262971,-500.0,0.00035726,9]
[419675431,1775278262980,-631.83,0.00035726,9]
[419675432,1775278262990,-500.0,0.00035726,9]
[419675433,1775278263000,-500.0,0.00035726,9]
[419675434,1775278263009,-500.0,0.00035726,9]
[419675435,1775278263021,-500.0,0.00035726,9]
[419675436,1775278263031,-683.32,0.00035726,9]
[419675437,1775278263042,-500.0,0.00035726,9]
[419675438,1775278263052,-500.0,0.00035726,9]
[419675439,1775278263062,-500.0,0.00035726,9]
[419675440,1775278263071,-500.0,0.00035726,9]
[419675441,1775278263082,-500.0,0.00035726,9]
[419675442,1775278263091,-217.60400202,0.00035726,9]
[419675443,1775278263100,-500.0,0.00035726,9]
[419675444,1775278263109,-287.37192491,0.00035726,9]
[419675445,1775278263118,-500.0,0.00035726,9]
[419675446,1775278263127,-1196.16,0.00035726,9]
[419675447,1775278263136,-665.02,0.00035726,9]
[419675448,1775278263145,-893.0,0.00035726,9]
[419675449,1775278263154,-500.0,0.00035726,9]
[419675450,1775278263163,-500.0,0.00035726,9]
[419675451,1775278263172,-500.0,0.00035726,9]
[419675452,1775278263182,-1378.5,0.00035726,9]
[419675453,1775278263191,-500.0,0.00035726,9]
[419675454,1775278263200,-500.0,0.00035726,9]
[419675455,1775278263211,-500.0,0.00035726,9]
[419675456,1775278263220,-500.0,0.00035726,9]
[419675457,1775278263230,-500.0,0.00035726,9]
[419675458,1775278263240,-515.21,0.00035726,9]
[419675459,1775278263249,-500.0,0.00035726,9]
[419675460,1775278263258,-500.0,0.00035726,9]
[419675461,1775278263267,-1067.13,0.00035726,9]
[419675462,1775278263276,-500.0,0.00035726,9]
[419675463,1775278263286,-500.0,0.00035726,9]
[419675464,1775278263295,-489.05354942,0.00035726,9]
[419675465,1775278263304,-500.0,0.00035726,9]
[419675466,1775278263313,-500.0,0.00035726,9]
[419675467,1775278263322,-500.0,0.00035726,9]
[419675468,1775278263332,-500.0,0.00035726,9]
[419675469,1775278263341,-500.0,0.00035726,9]
[419675470,1775278263350,-1297.98,0.00035726,9]
[419675471,1775278263359,-500.0,0.00035726,9]
[419675472,1775278263368,-755.32,0.00035726,9]
[419675473,1775278263377,-1331.36,0.00035726,9]
[419675474,1775278263386,-500.0,0.00035726,9]
[419675475,1775278263395,-500.0,0.00035726,9]
[419675476,1775278263405,-506.36286928,0.00035726,9]
[419675477,1775278263414,-500.0,0.00035726,9]
[419675478,1775278263423,-818.72,0.00035726,9]
[419675479,1775278263432,-500.0,0.00035726,9]
[419675480,1775278263442,-500.0,0.00035726,9]
[419675481,1775278263451,-500.0,0.00035726,9]
[419675482,1775278263461,-500.0,0.00035726,9]
[419675483,1775278263470,-534.71590412,0.00035726,9]
[419675484,1775278263480,-500.0,0.00035726,9]
[419675485,1775278263489,-500.0,0.00035726,9]
[419675486,1775278263498,-530.68,0.00035726,9]
[419675487,1775278263508,-151.0,0.00035726,7]
[419675488,1775278263517,-500.0,0.00035726,9]
[419675489,1775278263526,-500.0,0.00035726,9]
[419675490,1775278263536,-500.0,0.00035726,9]
[419675491,1775278263546,-500.0,0.00035726,9]
[419675492,1775278263555,-500.0,0.00035726,9]
[419675493,1775278263564,-500.0,0.00035726,9]
[419675494,1775278263573,-500.0,0.00035726,9]
[419675495,1775278263582,-500.0,0.00035726,9]
[419675496,1775278263591,-934.37,0.00035726,9]
[419675497,1775278263601,-500.0,0.00035726,9]
[419675498,1775278263610,-500.0,0.00035726,9]
[419675499,1775278263619,-500.0,0.00035726,9]
[419675500,1775278263628,-500.0,0.00035726,9]
[419675501,1775278263638,-500.0,0.00035726,9]
[419675502,1775278263647,-500.0,0.00035726,9]
[419675503,1775278263656,-523.46297215,0.00035726,9]
[419675504,1775278263665,-500.0,0.00035726,9]
[419675505,1775278263675,-500.0,0.00035726,9]
[419675506,1775278263683,-500.0,0.00035726,9]
[419675507,1775278263692,-500.14878252,0.00035726,9]
[419675508,1775278263701,-500.0,0.00035726,9]
[419675509,1775278263710,-500.0,0.00035726,9]
[419675510,1775278263719,-500.0,0.00035726,9]
[419675511,1775278263729,-500.0,0.00035726,9]
[419675512,1775278263738,-500.0,0.00035726,9]
[419675513,1775278263747,-743.05,0.00035726,9]
[419675514,1775278263756,-500.0,0.00035726,9]
[419675515,1775278263766,-500.0,0.00035726,9]
[419675516,1775278263775,-500.0,0.00035726,9]
[419675517,1775278263784,-227.31371108,0.00035726,9]
[419675518,1775278263793,-500.0,0.00035726,9]
[419675519,1775278263802,-500.0,0.00035726,9]
[419675520,1775278263811,-500.0,0.00035726,9]
[419675521,1775278263819,-500.0,0.00035726,9]
[419675522,1775278263828,-1274.67,0.00035726,9]
[419675523,1775278263838,-500.0,0.00035726,9]
[419675524,1775278263847,-709.22,0.00035726,9]
[419675525,1775278263856,-1164.93,0.00035726,9]
[419675526,1775278263865,-500.0,0.00035726,9]
[419675527,1775278263874,-500.0,0.00035726,9]
[419675528,1775278263883,-1884.9,0.00035726,9]
[419675529,1775278263891,-918.968632,0.00035726,7]
[419675530,1775278263902,-668.118075,0.00035726,7]
[419675531,1775278263912,-918.968632,0.00035726,7]
[419675532,1775278263922,-500.0,0.00035726,9]
[419675533,1775278263932,-668.118075,0.00035726,7]
[419675534,1775278263941,-918.968632,0.00035726,7]
[419675535,1775278263951,-500.0,0.00035726,9]
[419675536,1775278263962,-668.118075,0.00035726,7]
[419675537,1775278263972,-918.968632,0.00035726,7]
[419675538,1775278263981,-500.0,0.00035726,9]
[419675539,1775278263991,-668.118075,0.00035726,7]
[419675540,1775278264000,-593.37,0.00035726,9]
[419675541,1775278264008,-500.0,0.00035726,9]
[419675542,1775278264018,-3684.53,0.00035726,9]
[419675543,1775278264026,-500.0,0.00035726,9]
[419675544,1775278264035,-1141.03,0.00035726,9]
[419675545,1775278264044,-500.0,0.00035726,9]
[419675546,1775278264054,-500.0,0.00035726,9]
[419675547,1775278264063,-500.0,0.00035726,9]
[419675548,1775278264072,-500.0,0.00035726,9]
[419675549,1775278264082,-735.78,0.00035726,9]
[419675550,1775278264092,-500.0,0.00035726,2]
[419675551,1775278264102,-500.0,0.00035726,9]
[419675552,1775278264110,-500.0,0.00035726,9]
[419675553,1775278264120,-500.0,0.00035726,9]
[419675554,1775278264130,-914.08,0.00035726,9]
[419675555,1775278264139,-500.0,0.00035726,9]
[419675556,1775278264148,-2383.6,0.00035726,9]
[419675557,1775278264158,-500.0,0.00035726,9]
[419675558,1775278264171,-500.0,0.00035726,9]
[419675559,1775278264181,-500.0,0.00035726,9]
[419675560,1775278264190,-907.86,0.00035726,9]
[419675561,1775278264199,-902.05,0.00035726,9]
[419675562,1775278264208,-1126.74,0.00035726,9]
[419675563,1775278264218,-500.0,0.00035726,9]
[419675564,1775278264227,-568.23571446,0.00035726,9]
[419675565,1775278264237,-500.0,0.00035726,9]
[419675566,1775278264246,-442.56457978,0.00035726,9]
[419675567,1775278264254,-500.0,0.00035726,9]
[419675568,1775278264263,-500.0,0.00035726,9]
[419675569,1775278264272,-500.0,0.00035726,9]
[419675570,1775278264281,-500.0,0.00035726,9]
[419675571,1775278264291,-194.41262393,0.00035726,9]
[419675572,1775278264300,-500.0,0.00035726,9]
[419675573,1775278264309,-1098.55,0.00035726,9]
[419675574,1775278264319,-500.0,0.00035726,9]
[419675575,1775278264328,-500.0,0.00035726,9]
[419675576,1775278264338,-552.62,0.00035726,9]
[419675577,1775278264347,-269.81008449,0.00035726,9]
[419675578,1775278264356,-614.06,0.00035726,9]
[419675579,1775278264365,-500.0,0.00035726,9]
[419675580,1775278264374,-500.0,0.00035726,9]
[419675581,1775278264385,-500.0,0.00035726,9]
[419675582,1775278264395,-2086.14,0.00035726,9]
[419675583,1775278264404,-531.68,0.00035726,9]
[419675584,1775278264414,-500.0,0.00035726,9]
[419675585,1775278264423,-2760.69,0.00035726,9]
[419675586,1775278264433,-517.96,0.00035726,9]
[419675587,1775278264442,-1613.95,0.00035726,9]
[419675588,1775278264451,-500.0,0.00035726,9]
[419675589,1775278264460,-500.0,0.00035726,9]
[419675590,1775278264470,-1221.12,0.00035726,9]
[419675591,1775278264479,-310.26313765,0.00035726,9]
[419675592,1775278264489,-500.0,0.00035726,9]
[419675593,1775278264498,-500.0,0.00035726,9]
[419675594,1775278264508,-694.19,0.00035726,9]
[419675595,1775278264517,-500.0,0.00035726,9]
[419675596,1775278264527,-534.86478472,0.00035726,9]
[419675597,1775278264536,-500.0,0.00035726,9]
[419675598,1775278264545,-500.0,0.00035726,9]
[419675599,1775278264555,-2874.35,0.00035726,9]
[419675600,1775278264564,-3664.3,0.00035726,2]
[419675601,1775278264573,-1995.89,0.00035726,9]
[419675602,1775278264583,-500.0,0.00035726,9]
[419675603,1775278264592,-500.0,0.00035726,9]
[419675604,1775278264602,-500.0,0.00035726,9]
[419675605,1775278264611,-500.0,0.00035726,9]
[419675606,1775278264620,-500.0,0.00035726,9]
[419675607,1775278264630,-1104.72,0.00035726,9]
[419675608,1775278264639,-560.5,0.00035726,9]
[419675609,1775278264649,-1052.25,0.00035726,9]
[419675610,1775278264658,-1547.37,0.00035726,9]
[419675611,1775278264668,-500.0,0.00035726,9]
[419675612,1775278264677,-810.03,0.00035726,9]
[419675613,1775278264687,-500.0,0.00035726,9]
[419675614,1775278264697,-500.0,0.00035726,9]
[419675615,1775278264707,-360.32772326,0.00035726,9]
[419675616,1775278264716,-500.0,0.00035726,9]
[419675617,1775278264726,-608.32462609,0.00035726,9]
[419675618,1775278264736,-500.0,0.00035726,9]
[419675619,1775278264745,-527.65290383,0.00035726,9]
[419675620,1775278264755,-500.0,0.00035726,9]
[419675621,1775278264764,-500.0,0.00035726,9]
[419675622,1775278264774,-1242.53,0.00035726,9]
[419675623,1775278264783,-500.0,0.00035726,9]
[419675624,1775278264793,-2761.74,0.00035726,9]
[419675625,1775278264803,-300.0,0.00035726,2]
[419675626,1775278264813,-500.0,0.00035726,9]
[419675627,1775278264822,-500.0,0.00035726,9]
[419675628,1775278264832,-500.0,0.00035726,9]
[419675629,1775278264843,-1462.79,0.00035726,9]
[419675630,1775278264852,-500.0,0.00035726,9]
[419675631,1775278264862,-500.0,0.00035726,9]
[419675632,1775278264871,-993.37,0.00035726,9]
[419675633,1775278264881,-1858.66,0.00035726,9]
[419675634,1775278264891,-500.0,0.00035726,9]
[419675635,1775278264901,-500.0,0.00035726,9]
[419675636,1775278264911,-500.0,0.00035726,9]
[419675637,1775278264922,-425.97745593,0.00035726,9]
[419675638,1775278264932,-532.54828273,0.00035726,9]
[419675639,1775278264943,-2259.23,0.00035726,9]
[419675640,1775278264953,-500.0,0.00035726,9]
[419675641,1775278264963,-1469.43,0.00035726,9]
[419675642,1775278264973,-703.63,0.00035726,9]
[419675643,1775278264983,-895.49,0.00035726,9]
[419675644,1775278264995,-504.82,0.00035726,9]
[419675645,1775278265004,-500.0,0.00035726,9]
[419675646,1775278265015,-500.0,0.00035726,9]
[419675647,1775278265025,-2454.96,0.00035726,9]
[419675648,1775278265036,-2075.53,0.00035726,9]
[419675649,1775278265045,-506.77573339,0.00035726,9]
[419675650,1775278265054,-2974.27,0.00035726,9]
[419675651,1775278265064,-500.0,0.00035726,9]
[419675652,1775278265073,-257.37735891,0.00035726,9]
[419675653,1775278265083,-500.0,0.00035726,9]
[419675654,1775278265092,-472.43211745,0.00035726,9]
[419675655,1775278265102,-500.0,0.00035726,9]
[419675656,1775278265113,-2177.44,0.00035726,9]
[419675657,1775278265123,-500.0,0.00035726,9]
[419675658,1775278265133,-1955.54,0.00035726,9]
[419675659,1775278265143,-783.24,0.00035726,9]
[419675660,1775278265153,-500.0,0.00035726,9]
[419675661,1775278265163,-630.24,0.00035726,9]
[419675662,1775278265173,-500.0,0.00035726,9]
[419675663,1775278265183,-500.0,0.00035726,9]
[419675664,1775278265192,-1119.73,0.00035726,9]
[419675665,1775278265202,-500.0,0.00035726,9]
[419675666,1775278265211,-2370.68,0.00035726,9]
[419675667,1775278265221,-500.0,0.00035726,9]
[419675668,1775278265231,-1210.79,0.00035726,9]
[419675669,1775278265241,-1053.01,0.00035726,9]
[419675670,1775278265251,-2609.67,0.00035726,9]
[419675671,1775278265260,-500.0,0.00035726,9]
[419675672,1775278265270,-1493.22,0.00035726,9]
[419675673,1775278265279,-500.0,0.00035726,9]
[419675674,1775278265289,-1960.81,0.00035726,9]
[419675675,1775278265298,-1424.16,0.00035726,9]
[419675676,1775278265308,-3408.68,0.00035726,9]
[419675677,1775278265317,-579.58035824,0.00035726,9]
[419675678,1775278265327,-534.7372817,0.00035726,9]
[419675679,1775278265336,-500.0,0.00035726,9]
[419675680,1775278265346,-2300.16,0.00035726,9]
[419675681,1775278265355,-500.0,0.00035726,5]
[419675682,1775278265366,-500.0,0.00035726,9]
[419675683,1775278265376,-500.0,0.00035726,9]
[419675684,1775278265386,-500.0,0.00035726,9]
[419675685,1775278265397,-500.0,0.00035726,9]
[419675686,1775278265407,-500.0,0.00035726,9]
[419675687,1775278265416,-232.83499371,0.00035726,9]
[419675688,1775278265426,-255.1357773,0.00035726,9]
[419675689,1775278265436,-500.0,0.00035726,9]
[419675690,1775278265446,-500.0,0.00035726,9]
[419675691,1775278265456,-500.0,0.00035726,9]
[419675692,1775278265466,-500.0,0.00035726,9]
[419675693,1775278265476,-500.0,0.00035726,9]
[419675694,1775278265485,-500.0,0.00035726,9]
[419675695,1775278265495,-1347.98,0.00035726,9]
[419675696,1775278265504,-500.0,0.00035726,9]
[419675697,1775278265515,-500.0,0.00035726,9]
[419675698,1775278265525,-500.0,0.00035726,9]
[419675699,1775278265534,-500.0,0.00035726,9]
[419675700,1775278265544,-1120.58,0.00035726,9]
[419675701,1775278265555,-1397.46,0.00035726,9]
[419675702,1775278265565,-577.33012288,0.00035726,9]
[419675703,1775278265575,-500.0,0.00035726,9]
[419675704,1775278265585,-500.0,0.00035726,9]
[419675705,1775278265595,-500.0,0.00035726,9]
[419675706,1775278265605,-1227.05,0.00035726,9]
[419675707,1775278265615,-500.0,0.00035726,9]
[419675708,1775278265625,-500.0,0.00035726,9]
[419675709,1775278265636,-1603.45,0.00035726,9]
[419675710,1775278265645,-1251.23,0.00035726,9]
[419675711,1775278265656,-500.0,0.00035726,9]
[419675712,1775278265665,-658.95,0.00035726,9]
[419675713,1775278265675,-500.0,0.00035726,9]
[419675714,1775278265685,-966.96,0.00035726,9]
[419675715,1775278265695,-500.0,0.00035726,9]
[419675716,1775278265705,-500.0,0.00035726,9]
[419675717,1775278265715,-639.67812652,0.00035726,9]
[419675718,1775278265727,-1865.55,0.00035726,9]
[419675719,1775278265737,-500.0,0.00035726,9]
[419675720,1775278265747,-500.0,0.00035726,9]
[419675721,1775278265758,-1190.3,0.00035726,9]
[419675722,1775278265768,-500.0,0.00035726,9]
[419675723,1775278265778,-500.0,0.00035726,9]
[419675724,1775278265787,-500.0,0.00035726,9]
[419675725,1775278265797,-319.45921997,0.00035726,9]
[419675726,1775278265806,-1742.98,0.00035726,9]
[419675727,1775278265816,-500.0,0.00035726,9]
[419675728,1775278265826,-500.0,0.00035726,9]
[419675729,1775278265835,-2364.0,0.00035726,9]
[419675730,1775278265846,-500.0,0.00035726,9]
[419675731,1775278265856,-1291.04,0.00035726,9]
[419675732,1775278265866,-2287.39,0.00035726,9]
[419675733,1775278265875,-500.0,0.00035726,9]
[419675734,1775278265885,-1376.41,0.00035726,9]
[419675735,1775278265895,-500.0,0.00035726,9]
[419675736,1775278265905,-968.63,0.00035726,9]
[419675737,1775278265915,-653.2,0.00035726,9]
[419675738,1775278265925,-500.0,0.00035726,9]
[419675739,1775278265934,-500.0,0.00035726,9]
[419675740,1775278265944,-500.0,0.00035726,9]
[419675741,1775278265953,-456.7128413,0.00035726,9]
[419675742,1775278265963,-850.48,0.00035726,9]
[419675743,1775278265973,-500.0,0.00035726,9]
[419675744,1775278265982,-500.0,0.00035726,9]
[419675745,1775278265992,-733.38,0.00035726,9]
[419675746,1775278266001,-1176.55,0.00035726,9]
[419675747,1775278266011,-1208.88,0.00035726,9]
[419675748,1775278266021,-3648.36,0.00035726,9]
[419675749,1775278266030,-500.0,0.00035726,9]
[419675750,1775278266040,-502.30428535,0.00035726,9]
[419675751,1775278266049,-500.0,0.00035726,9]
[419675752,1775278266059,-1529.48,0.00035726,9]
[419675753,1775278266069,-500.0,0.00035726,9]
[419675754,1775278266079,-500.0,0.00035726,9]
[419675755,1775278266090,-1454.11,0.00035726,9]
[419675756,1775278266100,-500.0,0.00035726,9]
[419675757,1775278266111,-217.54652259,0.00035726,9]
[419675758,1775278266121,-500.0,0.00035726,9]
[419675759,1775278266130,-1718.88,0.00035726,9]
[419675760,1775278266142,-500.0,0.00035726,9]
[419675761,1775278266152,-599.39,0.00035726,9]
[419675762,1775278266164,-500.0,0.00035726,9]
[419675763,1775278266174,-500.0,0.00035726,9]
[419675764,1775278266184,-550.93,0.00035726,9]
[419675765,1775278266195,-500.0,0.00035726,9]
[419675766,1775278266205,-500.0,0.00035726,9]
[419675767,1775278266216,-500.0,0.00035726,9]
[419675768,1775278266226,-500.0,0.00035726,9]
[419675769,1775278266246,-500.0,0.00035726,9]
[419675770,1775278266258,-636.64,0.00035726,9]
[419675771,1775278266268,-500.0,0.00035726,9]
[419675772,1775278266279,-772.06,0.00035726,9]
[419675773,1775278266290,-500.0,0.00035726,9]
[419675774,1775278266300,-1214.7,0.00035726,9]
[419675775,1775278266311,-977.71,0.00035726,9]
[419675776,1775278266322,-500.0,0.00035726,9]
[419675777,1775278266332,-538.56714825,0.00035726,9]
[419675778,1775278266343,-3100.6,0.00035726,9]
[419675779,1775278266353,-500.0,0.00035726,9]
[419675780,1775278266364,-500.0,0.00035726,9]
[419675781,1775278266374,-500.0,0.00035726,9]
[419675782,1775278266384,-500.0,0.00035726,9]
[419675783,1775278266395,-500.0,0.00035726,9]
[419675784,1775278266406,-592.18,0.00035726,7]
[419675785,1775278266416,-1633.36,0.00035726,9]
[419675786,1775278266427,-1376.23,0.00035726,9]
[419675787,1775278266439,-888.32,0.00035726,9]
[419675788,1775278266450,-500.0,0.00035726,9]
[419675789,1775278266461,-500.0,0.00035726,9]
[419675790,1775278266471,-500.0,0.00035726,9]
[419675791,1775278266481,-500.0,0.00035726,9]
[419675792,1775278266492,-500.0,0.00035726,9]
[419675793,1775278266502,-500.0,0.00035726,9]
[419675794,1775278266513,-359.36877212,0.00035726,9]
[419675795,1775278266523,-3890.02,0.00035726,9]
[419675796,1775278266533,-500.0,0.00035726,9]
[419675797,1775278266544,-500.0,0.00035726,9]
[419675798,1775278266555,-500.0,0.00035726,9]
[419675799,1775278266565,-1610.53,0.00035726,9]
[419675800,1775278266575,-500.0,0.00035726,9]
[419675801,1775278266585,-500.0,0.00035726,9]
[419675802,1775278266596,-1272.26,0.00035726,9]
[419675803,1775278266607,-640.15,0.00035726,9]
[419675804,1775278266617,-3505.36,0.00035726,9]
[419675805,1775278266627,-186.37024955,0.00035726,9]
[419675806,1775278266638,-1201.45,0.00035726,9]
[419675807,1775278266648,-500.0,0.00035726,9]
[419675808,1775278266659,-1192.72,0.00035726,9]
[419675809,1775278266669,-1899.03,0.00035726,9]
[419675810,1775278266679,-500.0,0.00035726,9]
[419675811,1775278266689,-500.0,0.00035726,9]
[419675812,1775278266699,-500.0,0.00035726,9]
[419675813,1775278266710,-500.0,0.00035726,9]
[419675814,1775278266964,-500.0,0.00035726,9]
[419675815,1775278266975,-985.82,0.00035726,9]
[419675816,1775278266985,-4974.5,0.00035726,9]
[419675817,1775278266994,-500.0,0.00035726,9]
[419675818,1775278267003,-640.51,0.00035726,9]
[419675819,1775278267012,-2193.09,0.00035726,9]
[419675820,1775278267021,-500.0,0.00035726,9]
[419675821,1775278267031,-500.0,0.00035726,9]
[419675822,1775278267040,-1630.69,0.00035726,9]
[419675823,1775278267049,-515.01628507,0.00035726,9]
[419675824,1775278267058,-626.41,0.00035726,9]
[419675825,1775278267068,-973.64,0.00035726,9]
[419675826,1775278267078,-500.0,0.00035726,9]
[419675827,1775278267087,-799.63,0.00035726,9]
[419675828,1775278267096,-500.0,0.00035726,9]
[419675829,1775278267105,-500.0,0.00035726,9]
[419675830,1775278267114,-1704.35,0.00035726,4]
[419675831,1775278267123,-500.0,0.00035726,9]
[419675832,1775278267133,-500.0,0.00035726,9]
[419675833,1775278267142,-731.71,0.00035726,9]
[419675834,1775278267151,-500.0,0.00035726,9]
[419675835,1775278267160,-659.46,0.00035726,9]
[419675836,1775278267169,-1021.94,0.00035726,9]
[419675837,1775278267178,-500.0,0.00035726,9]
[419675838,1775278267187,-500.0,0.00035726,9]
[419675839,1775278267196,-1000.0,0.00035726,9]
[419675840,1775278267205,-779.38,0.00035726,9]
[419675841,1775278267214,-500.0,0.00035726,9]
[419675842,1775278267223,-500.0,0.00035726,9]
[419675843,1775278267232,-500.0,0.00035726,9]
[419675844,1775278267242,-500.0,0.00035726,9]
[419675845,1775278267251,-312.00943146,0.00035726,9]
[419675846,1775278267260,-500.0,0.00035726,9]
[419675847,1775278267269,-500.0,0.00035726,9]
[419675848,1775278267279,-365.57527946,0.00035726,9]
[419675849,1775278267288,-11770.86,0.00035726,9]
[419675850,1775278267298,-500.0,0.00035726,9]
[419675851,1775278267308,-711.01,0.00035726,9]
[419675852,1775278267318,-918.91,0.00035726,9]
[419675853,1775278267327,-822.76,0.00035726,9]
[419675854,1775278267336,-500.0,0.00035726,9]
[419675855,1775278267346,-500.0,0.00035726,9]
[419675856,1775278267355,-1288.91,0.00035726,9]
[419675857,1775278267365,-2077.05,0.00035726,9]
[419675858,1775278267374,-778.41,0.00035726,9]
[419675859,1775278267384,-500.0,0.00035726,9]
[419675860,1775278267394,-562.76663952,0.00035726,9]
[419675861,1775278267403,-500.0,0.00035726,9]
[419675862,1775278267412,-500.0,0.00035726,9]
[419675863,1775278267422,-500.0,0.00035726,9]
[419675864,1775278267431,-1126.98,0.00035726,9]
[419675865,1775278267441,-552.08899633,0.00035726,9]
[419675866,1775278267450,-500.0,0.00035726,9]
[419675867,1775278267460,-500.0,0.00035726,9]
[419675868,1775278267469,-852.29,0.00035726,9]
[419675869,1775278267478,-597.75,0.00035726,9]
[419675870,1775278267487,-749.58,0.00035726,9]
[419675871,1775278267496,-1447.5,0.00035726,9]
[419675872,1775278267505,-500.0,0.00035726,9]
[419675873,1775278267515,-500.0,0.00035726,9]
[419675874,1775278267524,-500.0,0.00035726,9]